[Event "11th LCC FIDE Open 2019"]
[Site "London"]
[Date "2019.11.29"]
[Round "1.54"]
[White "Gamal, Alaa"]
[Black "Abrahams, Daniel"]
[Result "0-1"]
[ECO "A30"]
[WhiteElo "1718"]
[BlackElo "2185"]
[Annotator "ChessBase"]
[PlyCount "108"]
[EventDate "2019.11.29"]
[EventType "swiss"]
[EventCountry "ENG"]
[SourceTitle "playchess.com"]
[Source "ChessBase"]
[SourceQuality "1"]
[TimeControl "40/5400+30:1800+30"]

1. c4 {[%emt 0:30:25]} e6 {[%emt 0:00:10]} 2. g3 {[%emt 0:00:05]} Nf6 {[%emt 0:00:19]} 3. Bg2 {[%emt 0:00:03]} c5 {[%emt 0:00:15]} 4. Nc3 {[%emt 0:00:26]} a6 {[%emt 0:00:37]} 5. e3 {[%emt 0:00:42]} Qc7 {[%emt 0:00:25]} 6. Nge2 {[%emt 0:00:17]} d6 {[%emt 0:00:21]} 7. b3 {[%emt 0:00:32]} Bd7 {[%emt 0:00:08]} 8. d4 {[%emt 0:00:22]} cxd4 {[%emt 0:00:24]} 9. exd4 {[%emt 0:00:33]} Be7 {[%emt 0:00:09]} 10. d5 {[%emt 0:02:13]} e5 {[%emt 0:00:37]} 11. O-O {[%emt 0:00:48]} b5 {[%emt 0:01:07]} 12. cxb5 {[%emt 0:00:30]} axb5 {[%emt 0:00:08]} 13. b4 {[%emt 0:00:02]} O-O {[%emt 0:00:45]} 14. Bb2 {[%emt 0:02:08]} Qb6 {[%emt 0:00:44]} 15. Rc1 {[%emt 0:04:53]} Na6 {[%emt 0:01:46]} 16. a3 {[%emt 0:00:29]} Nc7 {[%emt 0:00:20]} 17. h3 {[%emt 0:01:31]} Rac8 {[%emt 0:00:33]} 18. Kh2 {[%emt 0:01:10]} Rfd8 {[%emt 0:10:07]} 19. f4 {[%emt 0:06:15]} Nce8 {[%emt 0:00:09]} 20. f5 {[%emt 0:12:15]} g6 {[%emt 0:05:01]} 21. g4 {[%emt 0:06:25]} gxf5 {[%emt 0:00:11]} 22. g5 {[%emt 0:02:39]} Nh5 {[%emt 0:00:14]} 23. Bf3 {[%emt 0:00:16]} Nhg7 {[%emt 0:01:04]} 24. Qd2 {[%emt 0:03:24]} Rc4 {[%emt 0:02:51]} 25. Na4 {[%emt 0:09:23]} Qc7 {[%emt 0:01:45]} 26. Rxc4 {[%emt 0:00:42]} Qxc4 {[%emt 0:00:19]} 27. Nb6 {[%emt 0:08:43]} Qh4 {[%emt 0:00:23]} 28. Rg1 {[%emt 0:00:42]} Qf2+ {[%emt 0:00:07]} 29. Rg2 {[%emt 0:03:15]} Qxf3 {[%emt 0:00:49]} 30. Nd4 {[%emt 0:00:21]} exd4 {[%emt 0:00:52]} 31. Qxd4 {[%emt 0:00:07]} Qe4 {[%emt 0:00:29]} 32. Qf2 {[%emt 0:01:50]} Nh5 {[%emt 0:01:07]} 33. Rg1 {[%emt 0:03:25]} Qf4+ {[%emt 0:00:09]} 34. Qxf4 {[%emt 0:00:03]} Nxf4 {[%emt 0:00:09]} 35. Bf6 {[%emt 0:00:02]} Bxf6 {[%emt 0:00:37]} 36. gxf6+ {[%emt 0:00:04]} Kf8 {[%emt 0:00:09]} 37. Rc1 {[%emt 0:01:37]} Nxf6 {[%emt 0:00:12]} 38. Rc7 {[%emt 0:00:05]} N4xd5 {[%emt 0:00:29]} 39. Nxd7+ {[%emt 0:00:28]} Rxd7 {[%emt 0:00:20]} 40. Rc8+ {[%emt 0:00:02]} Ke7 {[%emt 0:00:12]} 41. Rb8 {[%emt 0:00:03]} Nc3 {[%emt 0:00:10]} 42. Rc8 {[%emt 0:00:16]} Nfe4 {[%emt 0:01:07]} 43. Rh8 {[%emt 0:00:06]} d5 {[%emt 0:00:32]} 44. Rxh7 {[%emt 0:00:20]} d4 {[%emt 0:00:08]} 45. Rh5 {[%emt 0:00:14]} Ke6 {[%emt 0:00:15]} 46. Rh6+ {[%emt 0:00:12]} f6 {[%emt 0:00:07]} 47. Rh8 {[%emt 0:00:23]} d3 {[%emt 0:00:09]} 48. Rg8 {[%emt 0:01:15]} d2 {[%emt 0:00:11]} 49. Rg1 {[%emt 0:01:17]} d1=Q {[%emt 0:00:12]} 50. Rxd1 {[%emt 0:00:30]} Rd6 {[%emt 0:00:13]} 51. Rd3 Rxd3 52. h4 {[%emt 0:08:48]} Rd2+ {[%emt 0:00:24]} 53. Kh3 {[%emt 0:01:06]} Nd5 {[%emt 0:00:08]} 54. h5 {[%emt 0:00:10]} Nf4+ {[%emt 0:00:04]} 0-1